Cogmind - Beta 16 @@@ ROGUE MODE // 2025.11.11 @ 18:08:50 Player: Mozco Result: Destroyed by Y-45 Defender with Beam Rifle Performance ------------- Evolutions (1) 500 Regions Visited (2) 400 Robots Destroyed (43) 215 Value Destroyed (721) 721 Prototype IDs (4) 80 Alien Tech Used (0) 0 Bonus (0) 0 TOTAL SCORE: 1916 Bonus ------- None Cogmind --------- Core Integrity 0/400 Matter 281/300 Energy 250/280 System Corruption 5% Temperature Warm (134) Movement Walking (190) Ox1 Location -9/Materials Parts ------- > --- POWER (1) -------- Heavy Ion Engine > --- PROPULSION (2) --- Improved Aluminum Leg Improved Aluminum Leg > --- UTILITY (4) ------ Medium Storage Unit Transport Network Coupler Hardened Light Armor Plating Shield Generator > --- WEAPON (2) ------- Maul Heavy Hammer (fused) > --- INVENTORY (10) --- Improved Ion Engine Airjet Airjet Airjet Airjet Aerolev Unit Aerolev Unit Weight Redist. System Sensor Array Hardened Light Armor Plating Peak State ------------ > --- POWER ------------ Heavy Ion Engine > --- PROPULSION ------- Improved Aluminum Leg Improved Aluminum Leg > --- UTILITY ---------- Medium Storage Unit Terrain Scan Processor Transport Network Coupler Hardened Light Armor Plating > --- WEAPON ----------- Maul Heavy Hammer > --- INVENTORY -------- Improved Ion Engine Airjet Airjet Airjet Airjet Aerolev Unit Aerolev Unit Weight Redist. System Sensor Array Hardened Light Armor Plating [Rating: 19] Favorites ----------- Power Light Ion Engine Engine Light Ion Engine Propulsion Improved Aluminum Leg Leg Improved Aluminum Leg Wheel Compact Wheel Hover Unit Aerolev Unit Flight Unit Improved Flight Unit Utility Medium Storage Unit Device Shield Generator Storage Medium Storage Unit Processor Transport Network Coupler Protection Hardened Light Armor Plating Weapon Mining Claw Impact Weapon Heavy Hammer Slashing Weapon Mining Claw Build | -11 -10 -9 ------- Run | Yrd Mat Mat Slots Evolved 2 | . . 2 Power . | . . . Propulsion . | . . . Utility 2 | . . 2 Weapon . | . . . Parts Attached 35 | 1 6 28 Power 5 | . 1 4 Engine 5 | . 1 4 Core . | . . . Reactor . | . . . Propulsion 16 | . 2 14 Treads . | . . . Leg 6 | . . 6 Wheel 8 | . 2 6 Hover 1 | . . 1 Flight 1 | . . 1 Utility 10 | 1 1 8 Device 3 | . . 3 Storage 3 | 1 1 1 Processor 2 | . . 2 Hackware . | . . . Protection 2 | . . 2 Artifact . | . . . Weapon 4 | . 2 2 Energy Gun . | . . . Energy Cannon . | . . . Ballistic Gun . | . . . Ballistic Cannon . | . . . Launcher . | . . . Special Weapon . | . . . Impact Weapon 2 | . . 2 Slashing Weapon 2 | . 2 . Piercing Weapon . | . . . Special Melee Weapon . | . . . Unidentified Prototypes 3 | . . 3 Corrupted Parts 1 | . . 1 System Corruption 5 | . . 5 Parts Lost 10 | . . 10 Power 1 | . . 1 Propulsion 4 | . . 4 Utility 3 | . . 3 Weapon 2 | . . 2 Highest Loss Streak 4 | . . 4 To Critical Strikes . | . . . Average Backups 7 | . . 8 Power . | . . . Propulsion 5 | . . 6 Utility . | . . . Weapon . | . . . Tool/Special . | . . . Unused Backups 20 | . . 20 Power 2 | . . 2 Propulsion 14 | . . 14 Utility 3 | . . 3 Weapon 1 | . . 1 Tool/Special . | . . . Average Slot Usage (%) 84 | . 41 88 Engine 9 | . 4 9 Leg 12 | . . 13 Wheel 7 | . 12 7 Device 4 | . . 4 Storage 15 | . 4 17 Processor 7 | . . 8 Protection 5 | . . 5 Impact Weapon 10 | . . 11 Slashing Weapon 10 | . 18 10 Peak Build Rating 19 | 1 6 19 Average Rating 11 | . 3 12 On Entrance 2 | . . 6 Avg Prop Armor Cover (%) 8 | . . 8 Naked Turns 29 | . 29 . Heaviest Build 31 | 5 12 31 Greatest Support 26 | 3 26 26 Greatest Overweight (x) 3 | 1 1 3 Average Overweight (x) . | . . . Largest Inventory Capacity 10 | 8 8 10 Average Capacity 9 | 5 6 9 Most Carried 10 | . 2 10 Average Carried 7 | . . 8 Final Capacity 10 | 5 8 10 Final Carried 10 | . 2 10 Class Distribution -------------------- 67% | Mutant 32% | Scavenger-Mutant Dominant Class ---------------- Scavenger-Mutant | -10/Materials Mutant | -9/Materials Resources | -11 -10 -9 ----------- Run | Yrd Mat Mat Matter Collected 560 | 64 156 340 Remotely . | . . . Salvage Created 1651 | . 105 1546 Parts 71 | . 6 65 Haulers Intercepted 6 | . . 6 Recyclers Shooed 2 | . . 2 Parts Field Recycled . | . . . Retrieved Matter . | . . . Parts Self-Destructed . | . . . Prevented . | . . . Parts Restored . | . . . Kills | -11 -10 -9 ------- Run | Yrd Mat Mat Combat Hostiles Destroyed 22 | . . 22 Melee 17 | . . 17 Classes Destroyed 10 | . 2 8 Worker 4 | . 1 3 Builder 1 | . . 1 Hauler 6 | . . 6 Recycler 6 | . 1 5 Operator 1 | . . 1 Watcher 3 | . . 3 Swarmer 9 | . . 9 Grunt 7 | . . 7 Duelist 1 | . . 1 Sentry 5 | . . 5 Best Kill Streak 7 | . 2 7 Combat Bots Only 7 | . . 7 Max Kills in Single Turn 2 | . 1 2 Gunslinging . | . . . Exploded . | . . . Melee 2 | . . 2 Uniques/NPCs Destroyed . | . . . Combat | -11 -10 -9 -------- Run | Yrd Mat Mat Hostile Shots Fired 194 | . 1 193 Missed 48 | . . 48 Hits 146 | . 1 145 Projectile 146 | . 1 145 Critical Strikes 3 | . . 3 Damage Taken 1386 | . 10 1376 Core 400 | . . 400 Absorbed by Shields 124 | . . 124 Core Remaining (%) 100 | 100 100 . Volleys Fired . | . . . Largest . | . . . Hottest . | . . . Shots Fired . | . . . Gun . | . . . Cannon . | . . . Launcher . | . . . Special . | . . . Kinetic . | . . . Thermal . | . . . Explosive . | . . . Electromagnetic . | . . . Robot Hit Streak . | . . . Robot Miss Streak . | . . . Penetration Max . | . . . Secondary Targets . | . . . Shots Hit Robots 87 | . 3 84 Core Hits 28 | . 2 26 Critical Kills 1 | . . 1 Critical Parts Destroyed 8 | . . 8 Critical Strikes 9 | . . 9 Smash 9 | . . 9 Melee Attacks 109 | . 4 105 Impact 67 | . . 67 Slashing 42 | . 4 38 Piercing . | . . . Sneak Attacks 20 | . 3 17 Combat Hostiles . | . . . Follow-up Attacks 10 | . 1 9 Damage Inflicted 3249 | . 137 3112 Guns . | . . . Cannons . | . . . Explosions . | . . . Melee 3249 | . 137 3112 Ramming . | . . . Kinetic . | . . . Thermal . | . . . Explosive . | . . . Electromagnetic . | . . . Impact 2326 | . . 2326 Slashing 923 | . 137 786 Piercing . | . . . Highest Corruption 5 | . . 5 Average Corruption 5 | . . 5 Corruption Purged . | . . . Corruption Blocked . | . . . Effects 5 | . . 5 Matter Fused 1 | . . 1 Heat Flow Errors 3 | . . 3 Parts Fused 1 | . . 1 Overload Shots . | . . . Overflow Damage 765 | . 19 746 Projectiles . | . . . Explosions . | . . . Melee 765 | . 19 746 Knockbacks 9 | . . 9 Impact 8 | . . 8 Kinetic . | . . . Secondary 1 | . . 1 Self-Inflicted Damage . | . . . Shots . | . . . Rammed . | . . . Targets Rammed . | . . . Kicked . | . . . Crushed . | . . . Highest Temperature 277 | . . 277 Average Temperature 128 | . . 128 Received Heat Transfer 368 | . . 368 Siege Activations . | . . . Martial Activations . | . . . Shielding Activations . | . . . Robots Disrupted . | . . . Combat Hostiles . | . . . Robots Corrupted 13 | . . 13 Combat Hostiles 5 | . . 5 Parts Fried 8 | . . 8 Impact Corruptions 32 | . . 32 Robots Melted . | . . . Combat Hostiles . | . . . Parts Melted 2 | . . 2 Heat Transferred . | . . . Parts Sabotaged . | . . . Parts Stolen . | . . . Parts Stripped . | . . . Power Chain Reactions . | . . . Alert | -11 -10 -9 ------- Run | Yrd Mat Mat Maximum Alert Level 1 | . . 1 Low Security (%) 56 | 100 100 51 Level 1 43 | . . 48 Level 2 . | . . . Level 3 . | . . . Level 4 . | . . . Level 5 . | . . . High Security . | . . . Max Security . | . . . Peak Influence 336 | . 16 336 Initial . | . . . Average 155 | . 6 170 Influence Increases 841 | . 38 803 Destroy 0b10 Robot/C 440 | . . 440 Destroy 0b10 Robot/NC 105 | . 10 95 Destroy Leader 108 | . . 108 Successful Hack 38 | . 28 10 Partial Spotted 15 | . . 15 Lose Combat Pursuer 135 | . . 135 Influence Decreases 831 | . 36 795 Entered New Map 2 | . . 2 Time Decay 439 | . 36 403 Lost Part 90 | . . 90 Purge Threat 300 | . . 300 Squads Dispatched 3 | . . 3 Investigation 2 | . . 2 Extermination . | . . . Reinforcement 1 | . . 1 Assault . | . . . Garrison . | . . . Intercept . | . . . Searches Triggered . | . . . Construction Impeded . | . . . Haulers Reinforced . | . . . Active Scanning Responses . | . . . Cargo Convoy Interrupts . | . . . Stealth | -11 -10 -9 --------- Run | Yrd Mat Mat Distress Signals 5 | . . 5 Communications Jammed . | . . . Distress Signals . | . . . Times Spotted 53 | . 3 50 Peak Tracking Total 9 | . 3 9 Tactical Retreats 7 | . . 7 Traps | -11 -10 -9 ------- Run | Yrd Mat Mat Traps Triggered 1 | . . 1 Indirectly . | . . . Trap Hack Attempts . | . . . Triggered . | . . . Disarmed . | . . . Reprogrammed . | . . . Reused . | . . . Traps Extracted . | . . . Installed . | . . . Triggered . | . . . Machines | -11 -10 -9 ---------- Run | Yrd Mat Mat Machines Disabled . | . . . Max in Single Turn . | . . . Machines Repaired . | . . . Machines Dismantled . | . . . Machines Sabotaged . | . . . Overloaded Fab Kills . | . . . Hacking | -11 -10 -9 --------- Run | Yrd Mat Mat Machines Accessed 7 | . 2 5 Terminals 6 | . 2 4 Fabricators . | . . . Repair Stations . | . . . Recycling Units . | . . . Scanalyzers 1 | . . 1 Garrison Access . | . . . Total Hacks 25 | . 5 20 Successful 16 | . 3 13 Failed 8 | . 2 6 Catastrophic 1 | . . 1 Database Lockouts 1 | . . 1 Manual 9 | . 3 6 Terminals 20 | . 5 15 Fabricators . | . . . Repair Stations . | . . . Recycling Units . | . . . Scanalyzers 5 | . . 5 Garrison Access . | . . . Terminal Hacks 7 | . 1 6 Robot Analysis 1 | . 1 . Prototype ID Bank 1 | . . 1 Unreport Threat 2 | . . 2 Locate Traps 1 | . . 1 Security Status 1 | . . 1 Recall Investigation 1 | . . 1 Fabricator Hacks . | . . . Repair Station Hacks . | . . . Recycling Unit Hacks . | . . . Scanalyzer 4 | . . 4 Insert Component 1 | . . 1 Analyze 1 | . . 1 Retrieve Study 2 | . . 2 Garrison Access Hacks . | . . . Unauthorized Hacks 5 | . 2 3 Terminals 5 | . 2 3 Botnet 4 | . 1 3 Operators 1 | . 1 . Fabricators . | . . . Repair Stations . | . . . Recycling Units . | . . . Scanalyzers . | . . . Garrison Access . | . . . Data Cores Recovered . | . . . Used . | . . . Hacking Detections 7 | . 2 5 Full Trace Events 2 | . . 2 Feedback Events . | . . . Feedback Blocked . | . . . Robot Schematics Acquired . | . . . Robots Built . | . . . Authchips . | . . . Time . | . . . Total Robot Build Rating . | . . . Part Schematics Acquired 1 | . . 1 Parts Built . | . . . Authchips . | . . . Time . | . . . Total Part Build Rating . | . . . Part Studies Acquired 2 | . . 2 Parts Repaired . | . . . Time . | . . . Parts Recycled . | . . . Recycled Matter . | . . . Retrieved Matter . | . . . Retrieved Components . | . . . Parts Scanalyzed 1 | . . 1 Part Schematics Acquired 1 | . . 1 Parts Damaged . | . . . Bothacking | -11 -10 -9 ------------ Run | Yrd Mat Mat Used RIF Installer . | . . . Robots Hacked . | . . . Non-combat . | . . . Combat . | . . . Robot Hacks Applied . | . . . Relay Couplers Released . | . . . Fabnet Peak Effective % . | . . . Robots Rewired . | . . . Allies Hacked . | . . . Hacks Repelled . | . . . Allies | -11 -10 -9 -------- Run | Yrd Mat Mat Total Allies . | . . . Largest Group . | . . . Highest-Rated Group . | . . . Highest-Rated Ally . | . . . Total Orders . | . . . Ally Attacks . | . . . Total Damage . | . . . Kills . | . . . Allies Corrupted . | . . . Allies Melted . | . . . Intel | -11 -10 -9 ------- Run | Yrd Mat Mat Active Infowar (turns) 622 | . . 622 Seismic 160 | . . 160 T.N.C. 462 | . . 462 Robot Analysis Total 1 | . 1 . Derelict Logs Recovered . | . . . Drone Launches . | . . . Drone Recoveries . | . . . Exploration | -11 -10 -9 ------------- Run | Yrd Mat Mat Turns Passed 1329 | 17 104 1208 Spaces Moved 822 | 28 121 673 Core 98 | 28 70 . Treads . | . . . Legs 337 | . . 337 Wheels 386 | . 51 335 Hover 1 | . . 1 Flight . | . . . Fastest Speed 50 | 50 50 85 Average Speed 109 | 55 71 118 Slowest Speed 260 | 100 100 260 Overloaded Moves . | . . . Propulsion Burnouts . | . . . Robots Hopped . | . . . Potential Cave-ins . | . . . Cave-ins Triggered . | . . . Exploration Rate (%) 25 | 3 16 58 Regions Visited 2 Branch Regions . Pre-discovered Areas . | . . . Known Exits Taken . | . . . Unknown Exits Taken 2 | 1 1 . Scrap Searched . | . . . Spaces Dug . | . . . Terrain Destroyed . | . . . Melee . | . . . Projectile . | . . . AOE . | . . . Terrain Rammed . | . . . Walls Destroyed . | . . . Machines Disabled . | . . . Actions | -11 -10 -9 --------- Run | Yrd Mat Mat Total 1061 | 29 130 902 Wait 50 | . . 50 Move 820 | 27 120 673 Hop . | . . . Pick Up 26 | . 2 24 Fast Attach 24 | 1 6 17 Attach 5 | . . 5 Detach 1 | . . 1 Swap 10 | . . 10 Drop 28 | 1 . 27 Fire . | . . . Melee 97 | . 2 95 Ram . | . . . Kick . | . . . Crush . | . . . Escape Stasis . | . . . Rewire . | . . . Trap . | . . . Miscellaneous . | . . . Route ------- -11/Scrapyard -10/Materials -9/Materials (discovered 1 exit: [*Mat]) History --------- Turn | Location | Event 4 | -11/Scrapyard | Discovered new exit (range 16) 18 | -11/Scrapyard | Entered Materials 111 | -10/Materials | Discovered new exit (range 3) 122 | -10/Materials | Entered another Materials area 122 | -9/Materials | Evolved 2 slots: Utility x2 129 | -9/Materials | Central database locked down 356 | -9/Materials | Destroyed 7 combat bots 356 | -9/Materials | Lost 4 parts (3n1u) 486 | -9/Materials | Core integrity fell below 50% 833 | -9/Materials | Core integrity fell below 20% 837 | -9/Materials | Build established: Mutant 870 | -9/Materials | Lost 4 parts (1n2u1w) 1322 | -9/Materials | Discovered new exit (range 7) 1330 | -9/Materials | Destroyed by Y-45 Defender with Beam Rifle Last Messages --------------- >>Alert(Purge) Purged threat record, alert level lowered. >>Alert(Purge) Purged threat record, alert level lowered. 01240_ System corrupted: Heat flow error (+225). 01242_ K-01 Serf collects debris. 01249_ W-16 Scout destroyed. 01254_ Destroyed Hover Unit. 01254_ W-16 Scout system corrupted by crushing effect. 01254_ W-16 Scout knocked back. 01255_ W-16 Scout system terminally corrupted. 01255_ Lgt. Ion Engine fried. 01255_ Hover Unit fried. 01261_ System corrupted: Hvy. Hammer fused. 01283_ System corrupted: Matter fused (-9). 01294_ Discarded Terrain Scan Processor. 01294_ Acquired Shield Generator. 01318_ System corrupted: Heat flow error (+294). 01322_ EXIT=FOUND 01327_ Critical hit (Burn: +27). Map ----- +----------------------------------------------------+ | ??????????????????????"" # %!#?????????? | | ?????????????????????"Y" """ # #?????????? | | ???????????????????? """ +% #?????????? | | ???????????????????# ! """ # #?????????? | | ???????????????????# """ # #?????????? | | ???????????????????# ! + #?????????? | | ???????????????????# # ##?????????? | | ???????????????????#########+# #??????????? | | ??????????????????????###### #??????????? | | ??????????????????????# # #??????????? | | ????????????????#######!== # #??????????? | | ??????????????### # = + #??????????? | | ??????????????? #!= # #??????????? | | ???????????????? # # #??????????? | | ???????????????? # + #??????????? | | ????????????????? [ # # #??????????? | | ?????????????????# Y## # #??????????? | | ?????????????????# ## # #??????????? | | ?????????????????# #######+##+#??????????? | | ?????????????????# ## #??????????? | | ????????????????## ## #??????????? | | ????????????????# # #??????????? | | ????????????????# # #??????????? | | ????????????????# Y + #??????????? | | ????????????????# # #??????????? | | ????????????????# @ # #??????????? | | ????????????????## ## #??????????? | | ?????????????????# ############??????????? | | ?????????????????# #?????????????????????? | | ?????????????????# < #?????????????????????? | | ?????????????????# #?????????????????????? | | ?????????????????#####?????????????????????? | | ???????????????????????????????????????????? | | ???????????????????????????????????????????? | | ???????????????????????????????????????????? | | ???????????????????????????????????????????? | | | | | | | | | | | | | | | | | | | | | | | | | | | | | +----------------------------------------------------+ Best States ------------- Heat Dissipation 28 Energy Generation 14 Energy Capacity 280 Matter Stores 300 Matter Capacity 300 Sight Range 16 Terrain Scan Density 85 Armor Coverage 150 Evasion (%) 55 Item Schematics ----------------- Wheel | -9/Materials | Scanalyzed Robot Schematics ------------------ None Fabricated ------------ Nothing Repaired ---------- Nothing Studied --------- Mining Claw | -9/Materials | Hacked Wheel | -9/Materials | Hacked Alien Tech Used ----------------- None Achievements -------------- None Challenges ------------ None Game ------ Seed OvertunedStealthBox Manual? 0 Play Time 00:15:42 Cumulative 254.5 hours Start 2025.11.11 @ 17:55:41 End 2025.11.11 @ 18:08:50 Sessions 1 Manual Loads 0 Difficulty Rogue Special Mode None Game No. 259 Rogue 255 Adventurer 3 Explorer 1 Win Type - Total 1 Types 1/0/0/0/0/0/0/0/0/0 Lore% 77 Gallery% 75 Achievement% 59 Wizard Run 0 Options --------- Layout 0 ASCII 0 Keyboard 0 Movement Mouse Keybinds 0 Fullscreen 2 Font 18/SmallcapsGlow Map View 76x50 Zoom Use 0% Tactical HUD 1 Map Filters NONE Filters NONE Steam 1 RUN: b6a8dfe4-5b3c-4b7d-8b8c-50864ea627c8